bitfinex/quotes_ETHUSD_20241216
["timestamp","ask_amount","ask_price","bid_price","bid_amount"]
[1734375201303,45.21728502,4094.9,4094.8,6.87664559]
[1734375201526,45.21728502,4094.9,4094.8,7.49846045]
[1734375201837,44.21728502,4094.9,4094.8,5.27153478]
[1734375202136,41.44805371,4094.9,4094.8,13.43736706]
[1734375202554,41.44805371,4094.9,4094.8,15.14352318]
[1734375202754,41.44805371,4094.9,4094.8,15.38802318]
[1734375203050,41.44805371,4094.9,4094.8,2.14352318]
[1734375203208,40.44805371,4094.9,4094.8,4.5064353]
[1734375203407,40.44805371,4094.9,4094.8,0.43736706]
[1734375203626,40.44805371,4094.9,4094.8,0.46177861]
[1734375204031,33.6816412,4094.9,4094.8,1.68067261]
[1734375204347,32.31194244,4094.9,4094.8,3.38682873]
[1734375204491,32.31194244,4094.9,4094.8,1.68067261]
[1734375205542,27.80184893,4094.9,4094.8,1.68067261]
[1734375206299,27.80184893,4094.9,4094.8,3.4793645]
[1734375206495,27.80184893,4094.9,4094.8,3.45495295]
[1734375207331,27.80184893,4094.9,4094.8,7.30410145]
[1734375207516,27.80184893,4094.9,4094.8,3.21157295]
[1734375207715,27.80184893,4094.9,4094.8,3.23598472]
[1734375207916,27.80184893,4094.9,4094.8,3.23598349]
[1734375208307,27.80184893,4094.9,4094.8,6.23598349]
[1734375208521,27.80184893,4094.9,4094.8,6.21157295]
[1734375208725,25.36704748,4094.9,4094.8,6.21157295]
[1734375209273,24.36704748,4094.9,4094.8,6.21157295]
[1734375209609,13.0907867,4094.9,4094.8,6.21157295]
[1734375210655,49.0907867,4094.9,4094.8,1.99267895]
[1734375210858,49.0907867,4094.9,4094.8,2.01709125]
[1734375211527,48.0907867,4094.9,4094.8,3.63965442]
[1734375211724,48.0907867,4094.9,4094.4,2.40022032]
[1734375212046,0.32340441,4094.8,4093.8,1.79869189]
[1734375212245,0.32340441,4094.8,4094.4,2.4422]
[1734375212761,48.0907867,4094.9,4094.4,2.4422]
[1734375213858,48.44776611,4094.9,4094.5,0.974448]
[1734375214064,0.35697941,4094.8,4094.5,2.4423]
[1734375215064,48.0907867,4094.9,4094.5,2.4423]
[1734375215228,48.47704111,4094.9,4094.5,2.4423]
[1734375215564,0.38625441,4094.8,4094.5,2.4423]
[1734375215859,48.0907867,4094.9,4094.5,2.4423]
[1734375216927,45.72070582,4094.9,4094.8,4.07498275]
[1734375217144,45.72070582,4094.9,4094.8,2.4421]
[1734375220243,45.72070582,4094.9,4094.8,2.1983]
[1734375220649,48.10410582,4094.9,4094.8,2.1983]
[1734375221370,48.10410582,4094.9,4094.8,1.9545]
[1734375221371,48.46496257,4094.9,4094.8,1.9545]
[1734375221869,0.36085675,4094.8,4093.9,2.95978732]
[1734375222231,0.36085675,4094.8,4093.1,3.84204592]
[1734375222433,0.36085675,4094.8,4093.9,2.4424]
[1734375224775,0.36085675,4094.8,4090.8,5.63908549]
[1734375224776,0.62823353,4092.5,4090.8,4.63695021]
[1734375224967,36.0,4094.1,4090.5,0.975347]
[1734375225163,36.0,4094.4,4090.8,2.444]
[1734375225474,0.04476148,4094.7,4090.8,2.444]
[1734375225475,0.28376266,4094.3,4090.8,2.444]
[1734375226239,0.58053421,4094.2,4090.8,2.444]
[1734375226448,0.55,4094.0,4090.8,2.444]
[1734375226681,0.55,4093.8,4090.8,2.444]
[1734375226875,0.55,4093.6,4090.8,2.444]
[1734375227038,0.55,4093.4,4090.8,2.444]
[1734375227239,0.55,4093.2,4090.8,2.444]
[1734375227506,0.55,4093.0,4090.8,2.2002]
[1734375227639,0.55,4092.8,4090.8,2.2002]
[1734375227838,0.55,4092.6,4090.8,2.2002]
[1734375228193,0.55,4092.4,4090.8,1.9564]
[1734375228410,0.03055422,4092.3,4090.8,1.9564]
[1734375228587,0.55,4092.2,4090.8,1.9564]
[1734375228764,0.03055457,4092.1,4090.8,1.9564]
[1734375229267,0.55,4092.0,4090.8,1.9564]
[1734375229462,0.03055786,4091.9,4090.8,1.9564]
[1734375229670,0.33067341,4091.8,4090.8,1.9564]
[1734375229898,0.58055793,4091.7,4086.4,3.45406286]
[1734375230097,0.30947672,4091.6,4086.4,1.24129501]
[1734375230297,0.89059734,4091.5,4086.4,3.68689501]
[1734375230501,0.30947672,4091.4,4086.4,2.4456]
[1734375230668,0.58057973,4091.3,4086.4,2.4456]
[1734375230879,0.38947672,4091.2,4086.4,2.4456]
[1734375231080,4.78204012,4091.1,4084.2,1.24003687]
[1734375231262,0.55,4090.9,4083.3,0.79869189]
[1734375231464,0.55,4090.7,4083.7,1.23126961]
[1734375231776,0.55,4090.5,4084.4,2.03250554]
[1734375231972,0.55,4090.3,4084.4,3.2032]
[1734375232176,0.55,4090.1,4084.4,3.2032]
[1734375232380,0.55,4089.9,4084.4,3.2032]
[1734375232693,0.55,4089.7,4084.4,3.2032]
[1734375232896,0.55,4089.5,4084.7,0.25]
[1734375233063,0.55,4089.3,4084.7,2.6982]
[1734375233266,0.07533867,4089.2,4085.0,0.25]
[1734375233465,0.04476148,4089.1,4085.1,3.0]
[1734375233685,0.04476148,4089.1,4085.1,5.4479]
[1734375234864,0.03057438,4090.6,4085.5,0.5]
[1734375235128,0.03057438,4090.6,4085.7,0.25]
[1734375235343,0.03057438,4090.6,4085.7,2.6976]
[1734375235491,0.03057176,4091.6,4085.7,3.5138]
[1734375235691,0.03057176,4091.6,4085.7,2.4476]
[1734375235692,0.38983672,4091.5,4085.7,2.4476]
[1734375236019,0.6253362,4091.4,4085.7,2.4476]
[1734375236219,0.55,4091.2,4085.7,2.4476]
[1734375236544,0.07533404,4091.1,4085.7,2.4476]
[1734375236757,0.42040928,4091.1,4085.7,2.4476]
[1734375236890,0.74988577,4091.1,4085.7,2.4476]
[1734375237503,0.32947649,4091.0,4085.7,2.4476]
[1734375237712,0.50064057,4090.9,4085.7,2.4476]
[1734375238392,0.55,4090.8,4085.7,2.4476]
[1734375238750,0.55,4090.6,4085.7,2.4476]
[1734375238945,0.0305814,4090.5,4085.7,2.4476]
[1734375239153,0.37565664,4090.5,4085.7,2.4476]
[1734375239435,0.55,4090.4,4085.7,2.4476]
[1734375239620,0.37565669,4090.3,4085.7,2.4476]
[1734375239824,0.67551332,4090.2,4085.7,2.2038]
[1734375240137,3.0104,4090.0,4085.7,2.2038]
[1734375240335,0.72384672,4089.9,4085.7,2.2038]
[1734375240490,0.59476148,4089.8,4085.7,2.2038]
[1734375240696,0.55,4089.6,4085.7,2.2038]
[1734375240892,0.55,4089.4,4085.7,2.2038]
[1734375241092,0.03058827,4089.3,4085.7,1.96]
[1734375241297,0.55,4089.2,4085.7,1.96]
[1734375241523,0.03058829,4089.1,4085.7,1.96]
[1734375242338,0.0305862,4089.4,4085.7,1.96]
[1734375242836,0.0305862,4089.4,4085.7,1.716]
[1734375245457,0.89507524,4089.3,4085.7,1.716]
[1734375245736,0.03058798,4089.2,4085.7,1.716]
[1734375246509,0.03058256,4089.5,4085.7,1.716]
[1734375246744,0.03058256,4089.5,4085.8,0.25]
[1734375246940,2.4604,4090.0,4086.9,0.25]
[1734375247096,2.4604,4090.0,4087.1,0.25]
[1734375247290,2.4604,4090.0,4087.1,3.4283]
[1734375247592,2.4604,4090.0,4087.5,0.25]
[1734375247796,0.03056342,4089.9,4087.6,3.0]
[1734375248025,0.03056342,4089.9,4087.6,5.9342]
[1734375248237,0.27965976,4089.9,4087.6,5.9342]
[1734375248852,0.655535,4089.9,4087.6,3.178]
[1734375248995,0.27965976,4089.9,4087.6,3.178]
[1734375249200,0.55,4089.7,4087.6,3.178]
[1734375249397,0.03057858,4089.6,4087.6,3.178]
[1734375250345,0.03057847,4089.6,4087.7,3.0]
[1734375251812,0.38236121,4089.6,4087.7,3.0]
[1734375252368,0.55,4089.5,4087.7,2.756]
[1734375252499,0.58058045,4089.4,4087.6,3.178]
[1734375252799,0.03058045,4089.4,4087.6,3.178]
[1734375253247,0.03058045,4089.4,4087.6,2.9342]
[1734375253248,0.35178274,4089.3,4087.6,2.9342]
[1734375253397,0.58058403,4089.2,4087.6,2.9342]
[1734375253816,0.32969315,4089.1,4084.8,1.47024362]
[1734375254021,0.90982419,4089.0,4084.5,0.25]
[1734375254319,0.55,4088.8,4084.5,0.25]
[1734375254525,0.37482571,4088.7,4084.5,0.25]
[1734375254836,0.55,4088.6,4084.5,2.697]
[1734375255021,0.35276157,4088.5,4084.5,2.697]
[1734375255220,0.55,4088.4,4084.5,2.697]
[1734375255459,0.55,4088.2,4084.5,2.697]
[1734375255659,0.03059051,4088.1,4084.6,3.0]
[1734375255822,0.03059051,4088.1,4084.6,5.4482]
[1734375256021,0.38649492,4088.1,4084.6,5.4482]
[1734375256221,0.03059051,4088.1,4084.6,5.4482]
[1734375256464,0.3837185,4088.0,4084.6,2.3992]
[1734375256663,0.3837185,4088.0,4084.6,2.2044]
[1734375256664,0.55,4087.3,4084.6,2.2044]
[1734375256867,3.0677,4087.1,4084.6,2.2044]
[1734375257087,0.55,4086.7,4084.6,2.2044]
[1734375257434,0.03059673,4086.6,4084.6,2.2044]
[1734375259307,0.977262,4088.0,4085.5,0.25]
[1734375259438,0.977262,4088.0,4085.5,2.9415]
[1734375259641,0.03058184,4087.9,4085.6,3.0]
[1734375260045,0.97701,4089.6,4085.6,3.0]
[1734375260240,3.02438373,4089.5,4085.6,5.6914]
[1734375260495,0.83696872,4089.4,4085.6,5.6914]
[1734375260641,0.43891379,4089.3,4085.6,2.6914]
[1734375260841,0.6934155,4089.2,4085.6,2.6914]
[1734375261088,0.98891533,4089.1,4085.6,2.6914]
[1734375261280,0.55,4088.9,4085.6,2.6914]
[1734375261485,0.03058869,4088.8,4085.6,2.6914]
[1734375261854,0.03058869,4088.8,4085.7,3.25]
[1734375262189,0.03058869,4088.8,4085.7,5.9414]
[1734375262851,0.03058869,4088.8,4085.7,5.6914]
[1734375263050,0.03058869,4088.8,4085.7,5.4476]
[1734375263544,0.03058869,4088.8,4085.7,2.6914]
[1734375263953,0.03058869,4088.8,4085.7,2.4476]
[1734375264809,0.55,4088.6,4085.7,2.4476]
[1734375264952,0.03059555,4088.5,4085.7,2.4476]
[1734375265961,0.42864895,4089.4,4085.7,2.4476]
[1734375266292,0.74027964,4089.3,4085.7,2.4476]
[1734375266590,0.40840434,4089.2,4085.7,2.4476]
[1734375266792,0.43886474,4089.1,4085.7,2.4476]
[1734375267098,0.40840434,4089.0,4085.7,2.4476]
[1734375267302,0.43886474,4088.9,4085.7,2.4476]
[1734375267593,0.40840434,4088.8,4085.7,2.4476]
[1734375267753,0.2573517,4088.7,4085.7,2.4476]
[1734375267954,0.40846909,4088.6,4085.7,2.4476]
[1734375268153,2.88700794,4089.2,4085.7,2.4476]
[1734375268154,0.98892949,4088.5,4085.7,2.2038]
[1734375268359,0.55,4088.3,4085.7,2.2038]
[1734375268593,0.55,4088.1,4085.7,2.2038]
[1734375268809,0.0304604,4088.0,4085.7,2.2038]
[1734375269470,0.55,4087.8,4085.7,2.2038]
[1734375269670,0.21207617,4087.7,4085.7,2.2038]
[1734375269911,0.55,4087.6,4083.5,0.26848018]
[1734375270107,0.0304604,4087.5,4083.6,0.02448478]
[1734375270314,0.0304604,4087.5,4083.5,0.244]
[1734375270520,0.02760689,4087.5,4084.0,0.25]
[1734375270715,0.02760689,4087.5,4084.4,0.25]
[1734375270885,0.02760689,4087.5,4084.5,0.244]
[1734375271097,0.02760689,4089.1,4084.5,0.244]
[1734375271275,0.02760689,4089.1,4087.5,3.0]
[1734375271622,0.02760689,4089.1,4084.6,0.02447078]
[1734375271822,0.16544255,4089.0,4084.7,0.5]
[1734375272120,0.43603301,4088.9,4084.8,1.22024362]
[1734375272274,0.40842612,4088.8,4084.8,1.22024362]
[1734375272476,0.43598897,4088.7,4084.5,0.244]
[1734375272805,2.4046,4088.5,4084.1,1.50819447]
[1734375273111,0.55,4088.2,4084.1,1.50819447]
[1734375273284,0.02760689,4088.1,4084.1,1.50819447]
[1734375274279,0.02760689,4088.1,4084.0,0.244]
[1734375274588,2.9521,4087.9,4084.0,0.244]
[1734375274807,0.55,4087.7,4084.0,0.244]
[1734375274993,2.4021,4087.4,4084.0,0.244]
[1734375275183,2.4021,4087.0,4084.0,0.244]
[1734375275393,2.4021,4086.8,4084.0,0.244]
[1734375275591,0.57760689,4086.7,4084.4,0.25]
[1734375275914,0.02760689,4086.7,4084.0,0.244]
[1734375276227,0.24297069,4086.6,4084.0,0.244]
[1734375276431,2.42970689,4086.5,4082.3,1.23197472]
[1734375276580,2.4021,4086.3,4082.6,1.21433391]
[1734375276785,2.4021,4086.1,4082.6,1.21433391]
[1734375277013,0.55,4085.8,4083.1,1.25819141]
[1734375277317,0.02760689,4085.7,4083.0,1.2782572]
[1734375277502,0.55,4085.6,4082.8,1.22453668]
[1734375277679,0.02760689,4085.5,4082.8,1.22453668]
[1734375278020,0.55,4085.3,4082.8,1.22453668]
[1734375278217,0.02760689,4085.2,4082.8,1.22453668]
[1734375278405,0.55,4085.1,4082.8,1.22453668]
[1734375278580,0.02760689,4085.0,4082.8,1.22453668]
[1734375279326,0.02760689,4085.0,4082.2,0.25]
[1734375279327,0.02760689,4085.0,4082.3,0.25]
[1734375279628,0.34275758,4085.0,4082.5,0.25]
[1734375279778,0.02760689,4085.0,4082.5,0.25]
[1734375280219,0.02760689,4085.0,4081.5,0.244]
[1734375280220,0.02760689,4085.0,4081.9,1.24056393]
[1734375280426,0.02760689,4085.0,4081.8,0.244]
[1734375280594,0.02760689,4085.0,4081.5,0.25]
[1734375280781,0.02760689,4085.0,4081.6,1.2874552]
[1734375280984,0.55,4084.8,4081.6,1.2874552]
[1734375281325,0.02760689,4084.7,4081.3,0.1662241]
[1734375281910,2.9585,4084.5,4081.3,0.1662241]
[1734375282085,2.4085,4084.2,4081.3,0.1662241]
[1734375282283,0.55,4083.9,4080.1,1.20757734]
[1734375282503,0.02760689,4083.8,4080.1,1.20757734]
[1734375283015,0.02760689,4083.8,4080.0,1.54626237]
[1734375283214,0.02760689,4083.8,4079.9,0.25]
[1734375283215,0.57760689,4083.8,4080.4,1.28621138]
[1734375283416,0.57760689,4083.8,4079.8,1.20366848]
[1734375283417,0.89514529,4083.8,4079.8,1.20366848]
[1734375283621,0.55,4083.6,4079.3,1.23763466]
[1734375283841,0.34514529,4083.5,4079.3,1.23763466]
[1734375284043,0.55,4083.4,4079.3,1.23763466]
[1734375284214,0.55,4083.4,4077.8,0.02451174]
[1734375284215,0.55,4082.6,4077.6,1.27371663]
[1734375284539,3.75532137,4082.7,4077.6,1.27371663]
[1734375284540,0.55,4082.4,4077.6,1.27371663]
[1734375284836,0.55,4082.2,4077.6,1.27371663]
[1734375285043,0.55,4082.0,4077.5,0.25]
[1734375285261,0.02760689,4081.9,4077.0,0.25]
[1734375285535,0.55,4081.8,4077.0,0.25]
[1734375285837,0.55,4081.6,4076.7,0.25]
[1734375285995,0.55,4081.4,4077.3,0.4162241]
[1734375286335,0.55,4081.2,4077.3,0.4162241]
[1734375286543,0.02760689,4081.1,4077.3,0.1662241]
[1734375286748,0.31797973,4081.1,4077.3,0.1662241]
[1734375286913,3.75532137,4080.9,4077.3,0.1662241]
[1734375287121,1.32273153,4080.8,4077.3,0.1662241]
[1734375287308,0.55,4080.6,4077.3,0.1662241]
[1734375287517,0.38382056,4080.5,4077.3,0.1662241]
[1734375287718,3.0687,4080.4,4077.3,0.1662241]
[1734375287918,0.55,4080.0,4077.3,0.1662241]
[1734375288154,2.5187,4079.7,4077.3,0.1662241]
[1734375288361,0.55,4079.4,4077.3,0.1662241]
[1734375288558,0.02760689,4079.3,4077.3,0.1662241]
[1734375288873,0.01782689,4079.2,4077.3,0.1662241]
[1734375290732,0.01782689,4079.2,4079.1,3.0]
[1734375291090,0.01782689,4079.2,4077.3,0.1662241]
[1734375291091,0.01782689,4079.3,4077.3,0.1662241]
[1734375291372,0.55,4079.2,4077.3,0.1662241]
[1734375291572,0.33378617,4080.4,4077.3,0.1662241]
[1734375291573,0.16845753,4080.7,4077.5,0.25]
[1734375291786,0.31239779,4081.9,4078.9,0.25]
[1734375292066,1.01039574,4084.4,4077.9,0.7924]
[1734375292067,2.409,4083.3,4079.3,0.25]
[1734375292270,0.41715286,4082.3,4079.4,0.25]
[1734375292479,2.409,4083.3,4079.8,0.25]
[1734375292682,2.409,4083.3,4082.4,3.0]
[1734375292683,0.65805286,4083.2,4082.4,3.0]
[1734375292835,0.2409,4083.2,4080.2,0.25]
[1734375293030,0.26499,4083.1,4080.2,0.25]
[1734375293277,0.68214286,4083.1,4080.2,0.25]
[1734375293882,0.55,4083.0,4080.2,0.5]
[1734375294080,0.41715286,4083.0,4080.2,0.5]
[1734375294283,0.41715286,4083.9,4080.6,0.25]
[1734375294488,0.12474744,4083.5,4081.7,0.25]
[1734375294632,0.25534281,4084.4,4082.0,0.25]
[1734375295020,3.75532137,4087.3,4081.5,0.25]
[1734375295021,0.55,4085.2,4081.5,0.25]
[1734375295131,0.55,4085.2,4081.3,0.25]
[1734375295132,0.41715286,4084.3,4081.4,0.25]
[1734375295532,0.41715286,4084.3,4081.3,0.25]
[1734375295838,0.9,4082.9,4080.9,0.25]
[1734375296055,0.9,4082.9,4081.2,0.25]
[1734375296548,0.55,4085.2,4082.2,0.25]
[1734375296799,0.55,4085.2,4082.5,0.25]
[1734375297086,0.39041452,4085.1,4082.5,0.25]
[1734375297253,0.55,4085.3,4082.9,0.25]
[1734375297447,0.39041452,4086.2,4082.9,0.25]
[1734375297659,0.12452495,4085.7,4082.9,0.25]
[1734375297970,0.39041452,4085.6,4082.6,0.25]
[1734375298294,0.39041452,4085.6,4081.7,0.8086]
[1734375298295,0.39041452,4085.6,4081.7,0.25]
[1734375298498,2.91821452,4085.6,4081.4,0.25]
[1734375298640,2.91821452,4085.6,4080.9,0.25]
[1734375298845,2.5278,4085.4,4081.2,0.25]
[1734375299075,0.36757869,4085.3,4081.2,0.25]
[1734375299387,0.55,4085.2,4081.2,0.25]
[1734375299569,0.55,4085.0,4081.2,0.25]
[1734375299770,0.36757869,4084.9,4081.2,0.25]
[1734375300159,0.36757869,4084.9,4079.7,0.7997]
[1734375300160,0.55,4084.8,4081.5,0.25]
[1734375300343,0.91757869,4084.8,4081.5,0.5]
[1734375300539,0.34453787,4085.1,4081.5,0.5]
[1734375300540,0.55,4084.6,4081.9,0.25]
[1734375300775,0.55,4084.4,4081.9,0.25]
[1734375300958,0.36757869,4085.8,4082.3,0.25]
[1734375301298,0.36757869,4085.2,4082.3,0.25]
[1734375301643,1.04210364,4085.7,4082.3,0.25]
[1734375301843,0.67452495,4085.7,4083.0,0.25]
[1734375302042,0.67452495,4085.7,4082.3,0.25]
[1734375302043,0.67452495,4085.7,4082.7,0.25]
[1734375302284,0.36757869,4085.6,4081.7,1.22718861]
[1734375302489,0.36757869,4085.6,4082.0,0.5]
[1734375302702,0.36757869,4085.6,4082.5,0.25]
[1734375303052,0.67452495,4085.7,4082.5,0.25]
[1734375303484,0.67452495,4085.7,4082.8,0.25]
[1734375303682,0.67452495,4085.7,4083.2,0.25]
[1734375304194,0.67452495,4085.7,4081.9,0.25]
[1734375304393,0.67452495,4085.7,4080.5,0.8104]
[1734375304394,0.67452495,4085.7,4082.5,0.25]
[1734375304609,0.36757869,4085.6,4082.3,0.25]
[1734375304896,0.36757869,4085.6,4081.6,1.2874552]
[1734375304897,2.96277869,4085.6,4081.6,0.25]
[1734375305120,0.91373036,4085.5,4081.6,0.25]
[1734375305303,0.55,4085.3,4080.9,0.25]
[1734375305463,0.55,4084.9,4081.9,0.25]
[1734375305674,0.36373036,4085.5,4082.2,0.25]
[1734375305866,0.2645591,4087.0,4082.5,0.25]
[1734375306192,0.2645591,4087.0,4081.6,1.2874552]
[1734375306193,0.36757869,4086.5,4082.8,0.25]
[1734375306857,0.71928643,4085.7,4082.8,0.25]
[1734375307066,0.67452495,4085.7,4082.8,0.25]
[1734375307247,0.67452495,4085.7,4083.1,0.25]
[1734375307446,0.67452495,4085.7,4083.4,0.25]
[1734375307877,0.55,4085.7,4083.9,0.25]
[1734375308075,0.12501877,4086.6,4083.9,0.25]
[1734375308388,0.12501877,4086.6,4083.6,0.25]
[1734375308389,0.7772,4086.1,4083.6,0.25]
[1734375308917,0.7772,4086.1,4083.7,0.25]
[1734375309868,0.12501877,4086.6,4084.3,0.25]
[1734375310071,0.12501877,4086.6,4084.6,0.25]
[1734375310504,0.12501877,4086.6,4084.1,0.5]
[1734375310708,35.49259746,4087.3,4084.9,0.25]
[1734375311019,2.55613921,4087.2,4084.6,0.25]
[1734375311228,2.55613921,4087.2,4084.4,0.25]
[1734375311229,2.55613921,4087.2,4085.0,0.25]
[1734375311515,35.49259746,4087.3,4085.3,0.25]
[1734375311719,35.49259746,4087.3,4084.8,0.25]
[1734375311720,35.49259746,4087.3,4085.6,0.25]
[1734375312415,35.49259746,4087.3,4084.2,1.24003687]
[1734375312416,35.49259746,4087.3,4086.2,0.25]
[1734375312713,35.49259746,4087.3,4084.3,0.0244796]
[1734375312714,35.49259746,4087.3,4086.6,0.25]
[1734375313219,35.49259746,4087.3,4087.1,0.25]
[1734375313393,35.49259746,4087.3,4087.2,0.25]
[1734375313588,0.05,4088.8,4088.6,0.25]
[1734375314104,35.49259746,4090.0,4089.3,0.25]
[1734375314344,35.49259746,4093.3,4090.6,0.25]
[1734375314618,35.49259746,4092.8,4091.7,0.25]
[1734375314834,35.49259746,4092.8,4090.4,0.814]
[1734375314835,0.0447217,4092.7,4092.5,0.25]
[1734375314980,0.0447217,4092.7,4091.8,0.25]
[1734375315374,0.0447217,4092.7,4092.6,0.25]
[1734375315677,0.0447217,4092.7,4092.6,0.5]
[1734375316636,35.49259746,4092.8,4092.6,0.5]
[1734375316781,35.49259746,4092.8,4092.7,0.25]
[1734375317123,35.49259746,4092.8,4092.2,0.25]
[1734375317282,38.04873667,4092.8,4091.9,0.5]
[1734375317479,38.04873667,4092.8,4091.4,0.25]
[1734375317709,38.04873667,4092.8,4091.2,0.25]
[1734375317913,2.55613921,4092.7,4091.2,0.25]
[1734375318127,2.55613921,4092.7,4090.7,0.25]
[1734375318449,2.55613921,4092.7,4087.9,0.25]
[1734375318450,0.55,4092.1,4090.0,0.25]
[1734375318603,0.55,4092.1,4087.4,0.25]
[1734375318604,3.76007493,4091.0,4089.2,0.25]
[1734375318959,0.92600749,4090.9,4089.2,0.5]
[1734375319224,0.92600749,4090.9,4088.6,0.25]
[1734375319737,0.92600749,4090.9,4088.5,0.25]
[1734375319738,0.55,4090.2,4088.0,0.25]
[1734375320102,0.55,4090.2,4088.1,0.04472912]
[1734375320296,0.55,4090.2,4088.1,0.29472912]
[1734375320498,0.55,4090.2,4088.2,0.25]
[1734375320911,0.55,4090.2,4088.1,0.04472912]
[1734375321113,0.55,4089.6,4088.1,0.04472912]
[1734375321315,0.55,4089.0,4088.1,0.04472912]
[1734375321582,0.43100749,4090.1,4088.1,0.04472912]
[1734375321583,0.55,4088.4,4088.1,0.04472912]
[1734375321865,0.55,4088.4,4086.1,0.25]
[1734375322289,0.25,4088.3,4086.1,0.25]
[1734375322428,0.55,4088.2,4086.1,0.25]
[1734375322626,0.55,4088.2,4086.1,0.5]
[1734375323174,0.41093192,4088.2,4086.4,0.25]
[1734375323326,0.41093192,4088.2,4086.1,0.25]
[1734375323972,0.7993,4088.4,4086.1,0.25]
[1734375324640,0.7993,4088.4,4085.7,0.25]
[1734375324932,0.55,4088.3,4086.1,1.0]
[1734375325255,0.55,4088.1,4086.1,1.0]
[1734375328904,0.13493,4088.2,4086.1,1.0]
[1734375329196,2.44445,4090.9,4086.3,0.25]
[1734375329511,0.7993,4088.6,4086.3,0.25]
[1734375329653,0.04476148,4088.5,4086.6,0.25]
[1734375329854,0.04476148,4088.5,4088.4,3.0]
[1734375330056,0.04476148,4088.5,4087.4,0.5]
[1734375330567,0.04476148,4088.5,4087.2,0.25]
[1734375330767,0.04476148,4088.5,4087.1,0.25]
[1734375330768,0.04476148,4088.5,4087.1,0.5]
[1734375331082,0.04476148,4088.5,4087.4,0.25]
[1734375331699,0.04476148,4088.5,4086.2,0.25]
[1734375331856,0.55,4088.4,4086.1,1.0]
[1734375332057,0.55,4088.2,4086.1,1.0]
[1734375332357,0.55,4088.0,4086.1,1.0]
[1734375332569,0.55,4087.8,4086.1,1.0]
[1734375332783,0.55,4087.6,4086.1,1.0]
[1734375332982,0.55,4087.4,4086.1,1.0]
[1734375333213,0.55,4087.2,4086.3,0.25]
[1734375334189,0.55,4087.2,4086.1,1.0]
[1734375336697,0.55,4087.2,4086.1,1.25]
[1734375336937,2.55613921,4089.4,4086.7,0.25]
[1734375337219,2.60090069,4089.3,4088.4,2.756]
[1734375337424,2.60090069,4089.3,4087.3,0.25]
[1734375337776,2.60090069,4089.3,4087.2,0.25]
[1734375337777,2.55613921,4089.3,4087.2,0.25]
[1734375337976,3.53315821,4089.3,4086.6,0.25]
[1734375338181,2.55613921,4089.2,4086.9,0.25]
[1734375338414,2.55613921,4089.2,4086.8,0.25]
[1734375338726,2.55613921,4089.2,4086.1,1.0]
[1734375338727,2.55613921,4089.2,4086.3,0.5]
[1734375338887,2.55613921,4089.2,4086.7,0.25]
[1734375338888,2.68045547,4089.2,4086.7,0.25]
[1734375339225,0.55,4089.0,4086.4,0.25]
[1734375339530,0.55,4089.0,4086.2,0.25]
[1734375339673,0.55,4089.0,4086.1,1.0]
[1734375339872,0.55,4088.8,4086.1,1.0]
[1734375340638,0.55,4088.8,4086.1,1.25]
[1734375340848,0.38518168,4088.9,4086.8,0.25]
[1734375341305,3.76007493,4091.1,4086.1,1.0]
[1734375341306,9.20483905,4091.6,4089.3,3.0]
[1734375341490,9.20483905,4091.6,4086.3,0.8037]
[1734375341491,0.25483905,4091.6,4087.8,0.25]
[1734375341891,0.8037,4089.9,4087.8,0.25]
[1734375342538,0.25483905,4091.6,4087.7,0.2]
[1734375342743,0.8037,4089.7,4087.7,0.2]
[1734375343743,0.55,4089.4,4087.7,0.2]
[1734375343944,0.25483905,4091.6,4088.0,0.25]
[1734375344146,38.04873667,4089.5,4087.7,0.2]
[1734375344292,38.04873667,4089.5,4087.7,0.45]
[1734375345096,38.04873667,4089.5,4088.1,0.25]
[1734375346445,0.55,4089.4,4087.7,0.45]
[1734375346590,3.10613921,4089.4,4087.3,0.45]
[1734375346792,3.10613921,4089.4,4087.0,0.25]
[1734375347041,3.10613921,4089.4,4087.0,0.35909255]
[1734375347042,0.55,4089.2,4087.0,0.35909255]
[1734375347345,0.55,4089.2,4086.7,0.25]
[1734375347550,0.55,4089.0,4086.7,0.25]
[1734375347784,3.121,4088.8,4085.7,0.25]
[1734375347896,3.121,4088.8,4085.5,0.2]
[1734375347897,0.55,4088.6,4085.5,0.2]
[1734375348253,0.55,4088.4,4085.5,0.2]
[1734375348457,0.55,4088.2,4085.4,0.45]
[1734375348745,0.55,4088.0,4085.1,0.45]
[1734375348954,0.55,4087.8,4085.1,0.45]
[1734375349244,0.55,4087.8,4084.3,0.244]
[1734375349245,0.55,4087.6,4084.9,0.25]
[1734375349535,0.55,4087.4,4085.0,0.2]
[1734375349749,0.55,4087.2,4085.0,0.2]
[1734375349951,0.55,4087.2,4085.2,0.25]
[1734375350304,0.55,4087.2,4083.6,0.7951]
[1734375350305,0.55,4087.2,4085.8,0.2]
[1734375350612,0.55,4087.2,4085.7,0.25]
[1734375350613,0.55,4087.2,4086.0,0.2]
[1734375351194,0.55,4087.2,4085.7,0.45]
[1734375351438,0.55,4087.2,4086.0,0.2]
[1734375352699,0.55,4087.2,4085.7,0.25]
[1734375352942,0.55,4087.2,4086.0,0.2]
[1734375353150,0.55,4087.2,4086.2,0.25]
[1734375353349,0.55,4087.2,4085.0,0.7777]
[1734375353350,35.49259746,4088.0,4086.5,0.25]
[1734375353647,35.49259746,4088.0,4086.8,0.25]